fUST/lending_fUST_20251230
["ID","MTS","AMOUNT","RATE_DAILY","PERIOD"]
[400076641,1767071442391,-500.0,0.00022191,2]
[400076642,1767071442401,-425.3251123,0.00022191,2]
[400076643,1767071442412,-501.10644483,0.00022191,2]
[400076644,1767071442421,-169.60907689,0.00022191,2]
[400076645,1767071442431,-500.0,0.00022191,2]
[400076646,1767071442440,-500.0,0.00022191,2]
[400076647,1767071442449,-1358.99,0.00022191,2]
[400076648,1767071442459,-500.0,0.00022191,2]
[400076649,1767071442468,-500.0,0.00022191,2]
[400076650,1767071442477,-500.0,0.00022191,2]
[400076651,1767071442486,-500.0,0.00022191,2]
[400076652,1767071442495,-1000.0,0.00022191,2]
[400076653,1767071442504,-500.0,0.00022191,2]
[400076654,1767071442514,-500.0,0.00022191,2]
[400076655,1767071442523,-500.0,0.00022191,2]
[400076656,1767071442532,-500.0,0.00022191,2]
[400076657,1767071442541,-500.0,0.00022191,2]
[400076658,1767071442550,-500.0,0.00022191,2]
[400076659,1767071442560,-500.0,0.00022191,2]
[400076660,1767071442569,-498.64088611,0.00022191,2]
[400076661,1767071442578,-500.0,0.00022191,2]
[400076662,1767071442590,-360.0,0.00022226,2]
[400076663,1767071442599,-315.61748423,0.00022283,9]
[400076664,1767071442608,-1026.43,0.000223,14]
[400076665,1767071442617,-1023.47217641,0.00022465,2]
[400076666,1767071442626,-500.0,0.00022465,2]
[400076667,1767071442635,-500.0,0.00022465,2]
[400076668,1767071442645,-598.56632729,0.00022465,2]
[400076669,1767071442654,-500.0,0.00022465,2]
[400076670,1767071442663,-500.0,0.00022465,2]
[400076671,1767071442672,-500.0,0.00022465,2]
[400076672,1767071442682,-1358.99,0.00022465,2]
[400076674,1767071442691,-500.0,0.00022465,2]
[400076676,1767071442700,-500.0,0.00022465,2]
[400076678,1767071442709,-500.0,0.00022465,2]
[400076680,1767071442720,-500.0,0.00022465,2]
[400076681,1767071442729,-1000.0,0.00022465,2]
[400076682,1767071442738,-500.0,0.00022465,2]
[400076683,1767071442747,-504.4,0.00022465,2]
[400076684,1767071442757,-500.0,0.00022465,2]
[400076685,1767071442766,-500.0,0.00022465,2]
[400076686,1767071442775,-500.0,0.00022465,2]
[400076687,1767071442784,-500.0,0.00022465,2]
[400076688,1767071442794,-500.0,0.00022465,2]
[400076689,1767071442803,-592.77633965,0.00022465,2]
[400076690,1767071442812,-152.70127807,0.00022466,2]
[400076691,1767071442822,-357.6,0.00022525,2]
[400076692,1767071442831,-1023.47217641,0.00022739,2]
[400076693,1767071442840,-500.0,0.00022739,2]
[400076694,1767071442850,-500.0,0.00022739,2]
[400076695,1767071442861,-500.0,0.00022739,2]
[400076696,1767071442870,-500.0,0.00022739,2]
[400076697,1767071442880,-500.0,0.00022739,2]
[400076698,1767071442889,-1358.99,0.00022739,2]
[400076699,1767071442898,-500.0,0.00022739,2]
[400076700,1767071442907,-500.0,0.00022739,2]
[400076701,1767071442917,-500.0,0.00022739,2]
[400076702,1767071442926,-569.34807645,0.00022739,2]
[400076703,1767071442935,-500.0,0.00022739,2]
[400076704,1767071442944,-500.0,0.00022739,2]
[400076705,1767071442953,-500.0,0.00022739,2]
[400076706,1767071442962,-460.0,0.00022773,2]
[400076707,1767071442971,-151.0,0.000229,9]
[400076708,1767071442980,-456.87797955,0.00023013,2]
[400076709,1767071442989,-500.0,0.00023013,2]
[400076710,1767071442998,-500.0,0.00023013,2]
[400076711,1767071443007,-588.47770235,0.00023013,2]
[400076712,1767071443016,-1358.99,0.00023013,2]
[400076713,1767071443025,-500.0,0.00023013,2]
[400076714,1767071443035,-500.0,0.00023013,2]
[400076715,1767071443043,-500.0,0.00023013,2]
[400076716,1767071443052,-500.0,0.00023013,2]
[400076717,1767071443061,-500.0,0.00023013,2]
[400076718,1767071443070,-223.2,0.00023013,2]
[400076719,1767071443080,-371.12629505,0.0002305,2]
[400076720,1767071443093,-700.0,0.00023277,2]
[400076721,1767071443102,-500.0,0.00023287,2]
[400076722,1767071443112,-500.0,0.00023287,2]
[400076723,1767071443121,-1358.99,0.00023287,2]
[400076724,1767071443131,-500.0,0.00023287,2]
[400076725,1767071443140,-500.0,0.00023287,2]
[400076726,1767071443150,-500.0,0.00023287,2]
[400076727,1767071443159,-500.0,0.00023287,2]
[400076728,1767071443168,-513.16,0.00023287,2]
[400076729,1767071443178,-560.0,0.00023321,2]
[400076730,1767071443187,-315.61748423,0.00023396,11]
[400076731,1767071443197,-700.0,0.00023453,2]
[400076732,1767071443206,-151.0,0.000235,10]
[400076733,1767071443216,-10376.51,0.000235,2]
[400076734,1767071443227,-500.0,0.00023561,2]
[400076735,1767071443236,-500.0,0.00023561,2]
[400076736,1767071443246,-1358.99,0.00023561,2]
[400076737,1767071443255,-500.0,0.00023561,2]
[400076738,1767071443265,-500.0,0.00023561,2]
[400076739,1767071443274,-500.0,0.00023561,2]
[400076740,1767071443284,-500.0,0.00023561,2]
[400076741,1767071443294,-162.87917481,0.00023586,2]
[400076742,1767071443303,-281.56166012,0.00023589,10]
[400076743,1767071443313,-700.0,0.0002362,2]
[400076744,1767071443323,-700.0,0.00023696,2]
[400076745,1767071443332,-1000.0,0.00023798,10]
[400076746,1767071443341,-791.0,0.00023798,10]
[400076747,1767071443351,-500.0,0.00023835,2]
[400076748,1767071443359,-1358.99,0.00023835,2]
[400076749,1767071443368,-200.0,0.00023835,2]
[400076750,1767071443378,-200.0,0.00023835,2]
[400076751,1767071443387,-200.0,0.00023835,2]
[400076752,1767071443396,-200.0,0.00023835,2]
[400076753,1767071443406,-200.0,0.00023835,2]
[400076754,1767071443415,-200.0,0.00023835,2]
[400076755,1767071443424,-200.0,0.00023835,2]
[400076756,1767071443433,-200.0,0.00023835,2]
[400076757,1767071443442,-500.0,0.00023835,2]
[400076758,1767071443451,-500.0,0.00023835,2]
[400076759,1767071443461,-500.0,0.00023835,2]
[400076760,1767071443470,-500.0,0.00023835,2]
[400076761,1767071443480,-660.0,0.00023869,2]
[400076762,1767071443491,-584.51,0.000239,7]
[400076763,1767071443500,-166.66666667,0.00023984,2]
[400076764,1767071443509,-357.6,0.00024041,2]
[400076765,1767071443519,-1026.43,0.000241,14]
[400076766,1767071443528,-500.0,0.00024109,2]
[400076767,1767071443538,-1358.99,0.00024109,2]
[400076768,1767071443547,-200.0,0.00024109,2]
[400076769,1767071443556,-500.0,0.00024109,2]
[400076770,1767071443565,-500.0,0.00024109,2]
[400076771,1767071443575,-500.0,0.00024109,2]
[400076772,1767071443584,-500.0,0.00024109,2]
[400076773,1767071443593,-500.0,0.00024383,2]
[400076774,1767071443603,-1358.99,0.00024383,2]
[400076775,1767071443612,-200.0,0.00024383,2]
[400076776,1767071443622,-500.0,0.00024383,2]
[400076777,1767071443632,-500.0,0.00024383,2]
[400076778,1767071443642,-500.0,0.00024383,2]
[400076779,1767071443652,-500.0,0.00024383,2]
[400076780,1767071443661,-269.83898634,0.00024402,2]
[400076781,1767071443670,-203.76336022,0.00024417,2]
[400076782,1767071443680,-760.0,0.00024417,2]
[400076783,1767071443689,-315.61748423,0.00024509,12]
[400076784,1767071443699,-351.09879697,0.00024542,2]
[400076785,1767071443708,-151.0,0.000246,9]
[400076786,1767071443717,-12465.84693313,0.000246,3]
[400076787,1767071443728,-500.0,0.00024657,2]
[400076788,1767071443738,-1358.99,0.00024657,2]
[400076789,1767071443747,-200.0,0.00024657,2]
[400076790,1767071443756,-500.0,0.00024657,2]
[400076791,1767071443766,-500.0,0.00024657,2]
[400076792,1767071443775,-500.0,0.00024657,2]
[400076793,1767071443785,-531.9,0.00024657,2]
[400076794,1767071443794,-380.0,0.00024658,2]
[400076795,1767071443803,-700.0,0.00024738,2]
[400076796,1767071443813,-85303.1012057,0.000248,2]
[400076797,1767071443823,-641.83651579,0.00024811,2]
[400076798,1767071443833,-558645.613815,0.000249,2]
[400076799,1767071443843,-500.0,0.00024931,2]
[400076800,1767071443853,-1358.99,0.00024931,2]
[400076801,1767071443862,-200.0,0.00024931,2]
[400076802,1767071443872,-500.0,0.00024931,2]
[400076803,1767071443882,-500.0,0.00024931,2]
[400076804,1767071443891,-700.0,0.00024964,2]
[400076805,1767071443901,-860.0,0.00024965,2]
[400076806,1767071443910,-700.0,0.00025023,7]
[400076807,1767071443920,-406.28562827,0.0002505,2]
[400076808,1767071443929,-700.0,0.00025057,7]
[400076809,1767071443939,-5017.82948269,0.0002509,2]
[400076810,1767071443948,-1989.0,0.00025091,2]
[400076811,1767071443957,-10376.51,0.000251,2]
[400076812,1767071443967,-500.0,0.00025205,2]
[400076813,1767071443975,-1358.99,0.00025205,2]
[400076814,1767071443985,-200.0,0.00025205,2]
[400076815,1767071443994,-500.0,0.00025205,2]
[400076816,1767071444004,-500.0,0.00025205,2]
[400076817,1767071444013,-700.0,0.00025386,7]
[400076818,1767071444023,-500.0,0.00025405,7]
[400076819,1767071444032,-500.0,0.00025479,2]
[400076820,1767071444042,-1358.99,0.00025479,2]
[400076821,1767071444051,-200.0,0.00025479,2]
[400076822,1767071444060,-500.0,0.00025479,2]
[400076823,1767071444070,-576.92380782,0.00025479,2]
[400076824,1767071444079,-163.28,0.000255,2]
[400076825,1767071444088,-167.63,0.000255,7]
[400076826,1767071444098,-584.51,0.000255,7]
[400076827,1767071444107,-960.0,0.00025513,2]
[400076828,1767071444117,-641.83651575,0.00025543,2]
[400076829,1767071444127,-500.0,0.00025556,7]
[400076830,1767071444137,-357.6,0.00025558,2]
[400076831,1767071444147,-2174.0,0.00025577,2]
[400076832,1767071444156,-1989.0,0.00025577,2]
[400076833,1767071444166,-315.61748423,0.00025623,14]
[400076834,1767071444175,-700.0,0.00025712,7]
[400076835,1767071444185,-537.36,0.00025753,2]
[400076836,1767071444194,-1358.99,0.00025753,2]
[400076837,1767071444204,-311.3580163,0.00025753,2]
[400076838,1767071444213,-500.0,0.00025753,2]
[400076839,1767071444223,-151.0,0.00026,11]
[400076840,1767071444235,-1026.43,0.00026,14]
[400076841,1767071444245,-163.0,0.00026,7]
[400076842,1767071444254,-166.66666667,0.00026004,30]
[400076843,1767071444263,-1358.99,0.00026027,2]
[400076844,1767071444274,-285.40536442,0.00026027,2]
[400076845,1767071444284,-500.0,0.00026042,7]
[400076846,1767071444293,-1060.0,0.00026061,2]
[400076847,1767071444305,-2174.0,0.00026091,7]
[400076848,1767071444315,-1000.0,0.00026177,30]
[400076849,1767071444324,-1000.0,0.00026177,30]
[400076850,1767071444334,-700.0,0.00026248,7]
[400076851,1767071444343,-641.83651575,0.00026275,2]
[400076852,1767071444352,-151.0,0.000263,18]
[400076854,1767071444443,-1358.99,0.00026301,2]
[400076855,1767071444453,-500.0,0.00026354,7]
[400076856,1767071444462,-777.0,0.00026409,2]
[400076857,1767071444471,-700.0,0.00026523,7]
[400076858,1767071444481,-777.0,0.00026551,2]
[400076859,1767071444491,-5017.82948269,0.00026574,2]
[400076860,1767071444500,-1358.99,0.00026575,2]
[400076861,1767071444510,-1989.0,0.00026584,7]
[400076862,1767071444519,-1160.0,0.00026609,2]
[400076863,1767071444528,-661.477084,0.00026676,2]
[400076864,1767071444537,-777.0,0.00026727,2]
[400076865,1767071444546,-315.61748423,0.00026736,15]
[400076867,1767071444556,-777.0,0.00026761,2]
[400076868,1767071444565,-172.96149317,0.00026802,5]
[400076870,1767071444574,-500.0,0.00026829,7]
[400076872,1767071444583,-1358.99,0.00026849,2]
[400076874,1767071444592,-777.0,0.00026862,2]
[400076875,1767071444601,-10376.51,0.000269,2]
[400076876,1767071444611,-777.0,0.00026934,2]
[400076877,1767071444620,-777.0,0.00026949,2]
[400076878,1767071444630,-584.51,0.00027,7]
[400076879,1767071444639,-777.0,0.00027006,2]
[400076880,1767071444648,-641.83651575,0.00027007,2]
[400076881,1767071444658,-700.0,0.00027038,7]
[400076882,1767071444667,-441.44496149,0.0002705,2]
[400076883,1767071444676,-357.6,0.00027075,2]
[400076884,1767071444686,-777.0,0.00027107,7]
[400076885,1767071444696,-1358.99,0.00027123,2]
[400076886,1767071444705,-777.0,0.00027131,2]
[400076887,1767071444714,-1260.0,0.00027157,2]
[400076888,1767071444724,-1989.0,0.00027168,2]
[400076889,1767071444733,-777.0,0.00027205,7]
[400076890,1767071444743,-700.0,0.00027206,7]
[400076891,1767071444751,-777.0,0.00027263,2]
[400076892,1767071444760,-777.0,0.0002728,2]
[400076893,1767071444771,-700.0,0.00027365,7]
[400076894,1767071444780,-5017.82948269,0.00027387,2]
[400076895,1767071444790,-1358.99,0.00027397,2]
[400076896,1767071444799,-300.0,0.00027397,2]
[400076897,1767071444809,-300.0,0.00027397,2]
[400076898,1767071444818,-300.0,0.00027397,2]
[400076899,1767071444827,-300.0,0.00027397,2]
[400076900,1767071444838,-300.0,0.00027397,2]
[400076901,1767071444847,-300.0,0.00027397,2]
[400076902,1767071444856,-300.0,0.00027397,2]
[400076903,1767071444865,-300.0,0.00027397,2]
[400076904,1767071444874,-300.0,0.00027397,2]
[400076905,1767071444883,-300.0,0.00027397,2]
[400076906,1767071444892,-300.0,0.00027397,2]
[400076907,1767071444901,-300.0,0.00027397,2]
[400076908,1767071444911,-300.0,0.00027397,2]
[400076909,1767071444920,-300.0,0.00027397,2]
[400076910,1767071444930,-300.0,0.00027397,2]
[400076911,1767071444939,-300.0,0.00027397,2]
[400076912,1767071444948,-300.0,0.00027397,2]
[400076913,1767071444957,-300.0,0.00027397,2]
[400076914,1767071444967,-300.0,0.00027397,2]
[400076915,1767071444976,-300.0,0.00027397,2]
[400076916,1767071444985,-300.0,0.00027397,2]
[400076917,1767071444994,-300.0,0.00027397,2]
[400076918,1767071445004,-300.0,0.00027397,2]
[400076919,1767071445014,-300.0,0.00027397,2]
[400076920,1767071445024,-300.0,0.00027397,2]
[400076921,1767071445033,-300.0,0.00027397,2]
[400076922,1767071445043,-300.0,0.00027397,2]
[400076923,1767071445052,-300.0,0.00027397,2]
[400076924,1767071445062,-300.0,0.00027397,2]
[400076925,1767071445071,-300.0,0.00027397,2]
[400076926,1767071445080,-300.0,0.00027397,2]
[400076927,1767071445089,-300.0,0.00027397,2]
[400076928,1767071445099,-500.0,0.00027397,5]
[400076929,1767071445108,-700.0,0.00027427,7]
[400076930,1767071445117,-1358.99,0.00027671,2]
[400076931,1767071445127,-777.0,0.00027671,7]
[400076932,1767071445136,-700.0,0.00027697,7]
[400076933,1767071445146,-460.0,0.00027705,2]
[400076934,1767071445156,-641.83651575,0.00027739,2]
[400076935,1767071445165,-777.0,0.00027752,2]
[400076936,1767071445175,-1026.43,0.000278,14]
[400076937,1767071445184,-351.09879697,0.00027834,2]
[400076938,1767071445193,-315.61748423,0.00027849,16]
[400076939,1767071445203,-500.0,0.00027876,7]
[400076940,1767071445213,-1358.99,0.00027945,2]
[400076941,1767071445227,-1000.0,0.00027945,5]
[400076942,1767071445240,-250.0,0.00027945,5]
[400076943,1767071445250,-177.0,0.00027973,27]
[400076944,1767071445259,-700.0,0.00028102,7]
[400076945,1767071445270,-700.0,0.00028159,7]
[400076946,1767071445280,-1359.15,0.00028219,2]
[400076947,1767071445290,-777.0,0.00028252,2]
[400076948,1767071445300,-777.0,0.00028372,2]
[400076949,1767071445310,-641.83651575,0.00028472,2]
[400076950,1767071445319,-1341.07728692,0.00028493,5]
[400076951,1767071445329,-350.0,0.00028493,5]
[400076952,1767071445339,-151.0,0.000285,13]
[400076953,1767071445348,-357.6,0.00028592,3]
[400076954,1767071445358,-500.0,0.000286,7]
[400076955,1767071445367,-5000.0,0.00028699,15]
[400076956,1767071445377,-163.28,0.000287,2]
[400076957,1767071445387,-5000.0,0.00028766,15]
[400076958,1767071445397,-777.0,0.00028774,2]
[400076959,1767071445413,-1000.0,0.00028795,30]
[400076960,1767071445428,-1000.0,0.00028795,30]
[400076961,1767071445442,-579.0,0.00028795,30]
[400076962,1767071445455,-584.51,0.000288,7]
[400076963,1767071445466,-151.57,0.000288,2]
[400076964,1767071445479,-700.0,0.00028816,7]
[400076965,1767071445492,-777.0,0.00028857,2]
[400076966,1767071445505,-151.57,0.000289,2]
[400076967,1767071445518,-151.57,0.000289,2]
[400076968,1767071445532,-315.61748423,0.00028962,18]
[400076969,1767071445544,-206.01879,0.00029,120]
[400076970,1767071445556,-151.57,0.00029,2]
[400076971,1767071445569,-450.0,0.00029041,5]
[400076972,1767071445583,-476.6042947,0.0002905,2]
[400076973,1767071445595,-151.57,0.000291,2]
[400076974,1767071445608,-151.57,0.000292,2]
[400076975,1767071445622,-641.83651575,0.00029204,2]
[400076976,1767071445635,-151.57,0.000293,2]
[400076977,1767071445647,-151.57,0.000294,2]
[400076978,1767071445661,-151.57,0.000294,2]
[400076979,1767071445674,-151.57,0.000295,2]
[400076980,1767071445687,-700.0,0.00029521,7]
[400076981,1767071445698,-550.0,0.00029589,5]
[400076982,1767071445710,-1026.43,0.000296,14]
[400076983,1767071445722,-151.57,0.000296,2]
[400076984,1767071445734,-151.57,0.000297,2]
[400076985,1767071445747,-151.57,0.000298,2]
[400076986,1767071445759,-151.57,0.000299,2]
[400076987,1767071445772,-641.83651575,0.00029936,2]
[400076988,1767071445785,-500.90891161,0.0003,5]
[400076989,1767071445798,-151.57,0.0003,2]
[400076990,1767071445811,-151.57,0.0003,2]
[400076991,1767071445824,-315.61748423,0.00030075,19]
[400076992,1767071445836,-357.6,0.00030108,4]
[400076993,1767071445846,-650.0,0.00030137,5]
[400076994,1767071445856,-10376.5,0.000303,2]
[400076995,1767071445867,-584.51,0.000303,7]
[400076996,1767071445879,-256.5,0.00030419,30]
[400076997,1767071445894,-5018.0,0.00030419,30]
[400076999,1767071445906,-163.25,0.00030467,30]
[400077000,1767071445918,-700.0,0.00030497,7]
[400077001,1767071445928,-641.83651575,0.00030668,2]
[400077002,1767071445940,-750.0,0.00030685,5]
[400077003,1767071445951,-171.395,0.00030746,27]
[400077004,1767071445965,-182.73074953,0.00030746,27]
[400077005,1767071445975,-2000.0,0.0003087,7]
[400077006,1767071445986,-1391.47,0.00030958,30]
[400077007,1767071445998,-700.0,0.00030985,7]
[400077008,1767071446010,-185.38020416,0.00031,120]
[400077009,1767071446021,-201.19436054,0.00031,120]
[400077010,1767071446032,-180.65011172,0.00031,120]
[400077011,1767071446044,-527.92214701,0.00031,120]
[400077012,1767071446055,-167.28493125,0.00031,120]
[400077013,1767071446066,-465.18926066,0.00031,120]
[400077014,1767071446078,-173.91029313,0.00031,120]
[400077015,1767071446090,-696.99855369,0.00031,120]
[400077016,1767071446101,-650.8504817,0.00031,120]
[400077017,1767071446113,-182.30117202,0.00031,120]
[400077018,1767071446125,-539.16140886,0.00031,120]
[400077020,1767071446136,-151.0,0.00031,12]
[400077021,1767071446148,-469.51361326,0.00031,120]
[400077022,1767071446159,-541.02927458,0.00031,120]
[400077023,1767071446170,-1157.42344862,0.00031,120]
[400077024,1767071446181,-160.96956782,0.00031,120]
[400077025,1767071446192,-5000.0,0.00031005,2]
[400077026,1767071446204,-511.76362792,0.0003105,2]
[400077027,1767071446216,-167.63,0.000311,7]
[400077028,1767071446227,-351.09879697,0.00031126,2]
[400077029,1767071446241,-315.61748423,0.00031188,21]
[400077030,1767071446252,-163.28,0.000312,2]
[400077031,1767071446263,-1026.43,0.000312,14]
[400077032,1767071446275,-915.55215583,0.00031233,5]
[400077033,1767071446287,-641.83651575,0.000314,2]
[400077034,1767071446299,-10376.5,0.000315,2]
[400077035,1767071446311,-1391.47,0.00031506,31]
[400077036,1767071446324,-700.0,0.00031521,7]
[400077037,1767071446336,-163.0,0.000316,7]
[400077038,1767071446347,-357.6,0.00031625,4]
[400077039,1767071446358,-1000.0,0.00031674,30]
[400077040,1767071446370,-1000.0,0.00031674,30]
[400077041,1767071446381,-1000.0,0.00031674,30]
[400077042,1767071446392,-571.57875863,0.0003168,2]
[400077043,1767071446403,-1028.84176554,0.0003168,2]
[400077044,1767071446414,-1829.05202763,0.0003168,2]
[400077045,1767071446425,-174.72610861,0.0003168,2]
[400077046,1767071446436,-698.90443445,0.0003168,2]
[400077047,1767071446447,-1572.53497752,0.0003168,2]
[400077048,1767071446458,-2000.0,0.000317,7]
[400077049,1767071446469,-204.06,0.00031736,30]
[400077050,1767071446480,-700.0,0.00031775,7]
[400077051,1767071446491,-584.51,0.000318,7]
[400077052,1767071446502,-185.38020416,0.000319,120]
[400077053,1767071446513,-527.92214701,0.000319,120]
[400077054,1767071446524,-465.18926066,0.000319,120]
[400077055,1767071446534,-696.99855369,0.000319,120]
[400077056,1767071446545,-650.8504817,0.000319,120]
[400077057,1767071446558,-182.30117202,0.000319,120]
[400077058,1767071446569,-539.16140886,0.000319,120]
[400077059,1767071446688,-469.51361326,0.000319,120]
[400077060,1767071446710,-541.02927458,0.000319,120]
[400077061,1767071446721,-1157.42344862,0.000319,120]
[400077062,1767071446731,-700.0,0.00031927,7]
[400077063,1767071446740,-2000.01,0.00032,30]
[400077064,1767071446750,-5000.0,0.00032053,15]
[400077065,1767071446759,-1391.47,0.00032054,32]
[400077066,1767071446769,-5000.0,0.0003215,15]
[400077067,1767071446779,-10376.51,0.000322,2]
[400077068,1767071446789,-500.0,0.00032275,7]
[400077069,1767071446798,-315.61748423,0.00032301,22]
[400077070,1767071446807,-700.0,0.00032377,7]
[400077071,1767071446818,-500.0,0.00032387,7]
[400077072,1767071446827,-2827.0,0.000324,120]
[400077073,1767071446837,-900.0,0.00032426,7]
[400077074,1767071446846,-2000.0,0.0003253,7]
[400077075,1767071446856,-5000.0,0.00032601,15]
[400077076,1767071446866,-1391.47,0.00032602,33]
[400077077,1767071446876,-5000.0,0.00032639,3]
[400077078,1767071446886,-160.0,0.00032642,3]
[400077079,1767071446895,-965.70893362,0.00032876,120]
[400077080,1767071446905,-575.02,0.00032876,2]
[400077081,1767071446915,-575.02,0.00032876,2]
[400077082,1767071446924,-575.02,0.00032876,2]
[400077083,1767071446933,-575.02,0.00032876,2]
[400077084,1767071446943,-575.02,0.00032876,2]
[400077085,1767071446953,-575.02,0.00032876,2]
[400077086,1767071446963,-575.02,0.00032876,2]
[400077087,1767071446972,-575.02,0.00032876,2]
[400077088,1767071446981,-575.02,0.00032876,2]
[400077089,1767071446991,-575.02,0.00032876,2]
[400077090,1767071447000,-575.02,0.00032876,2]
[400077091,1767071447010,-575.02,0.00032876,2]
[400077092,1767071447020,-575.02,0.00032876,2]
[400077093,1767071447030,-575.02,0.00032876,2]
[400077094,1767071447043,-575.02,0.00032876,2]
[400077095,1767071447053,-575.02,0.00032876,2]
[400077096,1767071447063,-575.02,0.00032876,2]
[400077097,1767071447073,-575.02,0.00032876,2]
[400077098,1767071447083,-575.02,0.00032876,2]
[400077099,1767071447092,-575.02,0.00032876,2]
[400077100,1767071447103,-575.02,0.00032876,2]
[400077101,1767071447112,-575.02,0.00032876,2]
[400077102,1767071447122,-575.02,0.00032876,2]
[400077103,1767071447131,-575.2218476,0.00032876,2]
[400077104,1767071447140,-233.58774294,0.00032876,2]
[400077105,1767071447150,-798.72,0.00032877,10]
[400077106,1767071447159,-1170.78,0.00032877,10]
[400077107,1767071447169,-975.65,0.00032877,10]
[400077108,1767071447178,-500.0,0.00032877,5]
[400077109,1767071447187,-5000.0,0.00032899,15]
[400077110,1767071447196,-185.38020416,0.000329,120]
[400077111,1767071447205,-527.92214701,0.000329,120]
[400077112,1767071447215,-465.18926066,0.000329,120]
[400077113,1767071447224,-696.99855369,0.000329,120]
[400077114,1767071447237,-650.8504817,0.000329,120]
[400077115,1767071447247,-182.30117202,0.000329,120]
[400077116,1767071447256,-539.16140886,0.000329,120]
[400077117,1767071447266,-469.51361326,0.000329,120]
[400077118,1767071447276,-541.02927458,0.000329,120]
[400077119,1767071447285,-1157.42344862,0.000329,120]
[400077120,1767071447296,-3008.0,0.00033,30]
[400077121,1767071447305,-1020.0,0.00033,7]
[400077122,1767071447315,-188.0,0.00033,14]
[400077123,1767071447324,-244.87,0.00033005,30]
[400077124,1767071447334,-546.92296113,0.0003305,120]
[400077125,1767071447343,-1993.111595,0.000331,16]
[400077126,1767071447353,-357.6,0.00033142,5]
[400077127,1767071447363,-5000.0,0.00033149,15]
[400077128,1767071447372,-1391.47,0.0003315,34]
[400077129,1767071447382,-188.0,0.00033151,30]
[400077130,1767071447391,-661.477084,0.00033165,2]
[400077131,1767071447401,-225.2411399,0.000332,117]
[400077132,1767071447412,-1241.1395,0.0003322,30]
[400077133,1767071447421,-15279.06072301,0.00033291,2]
[400077134,1767071447431,-2000.0,0.0003336,7]
[400077135,1767071447440,-203.45969116,0.00033385,2]
[400077136,1767071447450,-270.10882532,0.00033385,2]
[400077137,1767071447459,-1026.43,0.000334,30]
[400077138,1767071447469,-315.61748423,0.00033415,23]
[400077139,1767071447479,-1000.0,0.00033425,5]
[400077140,1767071447488,-160.0,0.00033452,61]
[400077141,1767071447498,-151.0,0.000335,10]
[400077142,1767071447507,-1000.0,0.000336,16]
[400077143,1767071447516,-5000.0,0.00033607,8]
[400077144,1767071447526,-500.0,0.0003365,10]
[400077145,1767071447537,-500.0,0.0003365,10]
[400077146,1767071447546,-500.0,0.0003365,30]
[400077147,1767071447555,-500.0,0.0003365,10]
[400077148,1767071447565,-500.0,0.0003365,30]
[400077149,1767071447574,-500.0,0.0003365,10]
[400077150,1767071447583,-500.0,0.0003365,10]
[400077151,1767071447593,-500.0,0.0003365,30]